fUSD/lending_fUSD_20250404
["ID","MTS","AMOUNT","RATE_DAILY","PERIOD"]
[357138090,1743784240559,-500.0,0.00049315,2]
[357138091,1743784240568,-500.0,0.00049315,120]
[357138092,1743784240577,-232.0,0.00049315,90]
[357138093,1743784240587,-232.0,0.00049315,90]
[357138094,1743784240599,-232.0,0.00049315,90]
[357138095,1743784240609,-232.0,0.00049315,90]
[357138096,1743784240618,-232.0,0.00049315,90]
[357138097,1743784240628,-232.0,0.00049315,90]
[357138098,1743784240637,-232.0,0.00049315,90]
[357138099,1743784240647,-232.0,0.00049315,90]
[357138100,1743784240656,-232.0,0.00049315,90]
[357138101,1743784240666,-232.0,0.00049315,90]
[357138102,1743784240675,-232.0,0.00049315,90]
[357138103,1743784240684,-232.0,0.00049315,90]
[357138104,1743784240694,-232.0,0.00049315,90]
[357138105,1743784240703,-232.0,0.00049315,90]
[357138107,1743784240712,-232.0,0.00049315,90]
[357138108,1743784240723,-232.0,0.00049315,90]
[357138109,1743784240732,-232.0,0.00049315,90]
[357138110,1743784240742,-232.0,0.00049315,90]
[357138111,1743784240751,-232.0,0.00049315,90]
[357138113,1743784240761,-232.0,0.00049315,90]
[357138114,1743784240771,-232.0,0.00049315,90]
[357138115,1743784240780,-232.0,0.00049315,90]
[357138116,1743784240789,-232.0,0.00049315,90]
[357138117,1743784240799,-232.0,0.00049315,90]
[357138118,1743784240808,-232.0,0.00049315,90]
[357138119,1743784240817,-232.0,0.00049315,90]
[357138120,1743784240826,-232.0,0.00049315,90]
[357138121,1743784240835,-232.0,0.00049315,90]
[357138122,1743784240845,-232.0,0.00049315,90]
[357138123,1743784240854,-232.0,0.00049315,90]
[357138124,1743784240864,-232.0,0.00049315,90]
[357138125,1743784240873,-232.0,0.00049315,90]
[357138126,1743784240883,-232.0,0.00049315,90]
[357138127,1743784240893,-232.0,0.00049315,90]
[357138128,1743784240903,-232.0,0.00049315,90]
[357138129,1743784240912,-232.0,0.00049315,90]
[357138130,1743784240922,-232.0,0.00049315,90]
[357138131,1743784240931,-232.0,0.00049315,90]
[357138132,1743784240941,-232.0,0.00049315,90]
[357138133,1743784240950,-232.0,0.00049315,90]
[357138134,1743784240960,-232.0,0.00049315,90]
[357138135,1743784240969,-232.0,0.00049315,90]
[357138137,1743784240978,-232.0,0.00049315,90]
[357138139,1743784240987,-232.0,0.00049315,90]
[357138141,1743784240996,-232.0,0.00049315,90]
[357138143,1743784241006,-232.0,0.00049315,90]
[357138145,1743784241015,-232.0,0.00049315,90]
[357138147,1743784241024,-232.0,0.00049315,90]
[357138149,1743784241034,-232.0,0.00049315,90]
[357138151,1743784241043,-232.0,0.00049315,90]
[357138153,1743784241052,-232.0,0.00049315,90]
[357138154,1743784241062,-232.0,0.00049315,90]
[357138155,1743784241071,-232.0,0.00049315,90]
[357138156,1743784241080,-232.0,0.00049315,90]
[357138157,1743784241090,-232.0,0.00049315,90]
[357138158,1743784241103,-232.0,0.00049315,90]
[357138159,1743784241112,-232.0,0.00049315,90]
[357138160,1743784241122,-232.0,0.00049315,90]
[357138161,1743784241132,-232.0,0.00049315,90]
[357138162,1743784241141,-232.0,0.00049315,90]
[357138163,1743784241151,-232.0,0.00049315,90]
[357138164,1743784241161,-232.0,0.00049315,90]
[357138165,1743784241171,-232.0,0.00049315,90]
[357138166,1743784241184,-232.0,0.00049315,90]
[357138167,1743784241193,-232.0,0.00049315,90]
[357138168,1743784241203,-232.0,0.00049315,90]
[357138169,1743784241212,-232.0,0.00049315,90]
[357138170,1743784241223,-232.0,0.00049315,90]
[357138171,1743784241232,-232.0,0.00049315,90]
[357138172,1743784241242,-232.0,0.00049315,90]
[357138173,1743784241254,-232.0,0.00049315,90]
[357138174,1743784241263,-232.0,0.00049315,90]
[357138175,1743784241272,-232.0,0.00049315,90]
[357138176,1743784241281,-232.0,0.00049315,90]
[357138177,1743784241290,-232.0,0.00049315,90]
[357138178,1743784241299,-232.0,0.00049315,90]
[357138179,1743784241309,-232.0,0.00049315,90]
[357138180,1743784241318,-232.0,0.00049315,90]
[357138181,1743784241327,-232.0,0.00049315,90]
[357138182,1743784241336,-232.0,0.00049315,90]
[357138183,1743784241351,-232.0,0.00049315,90]
[357138184,1743784241361,-232.0,0.00049315,90]
[357138185,1743784241371,-232.0,0.00049315,90]
[357138186,1743784241380,-232.0,0.00049315,90]
[357138187,1743784241390,-232.0,0.00049315,90]
[357138188,1743784241399,-232.0,0.00049315,90]
[357138189,1743784241409,-232.0,0.00049315,90]
[357138190,1743784241419,-232.0,0.00049315,90]
[357138191,1743784241430,-232.0,0.00049315,90]
[357138192,1743784241440,-232.0,0.00049315,90]
[357138193,1743784241450,-232.0,0.00049315,90]
[357138194,1743784241459,-232.0,0.00049315,90]
[357138195,1743784241469,-232.0,0.00049315,90]
[357138196,1743784241478,-232.0,0.00049315,90]
[357138197,1743784241488,-232.0,0.00049315,90]
[357138198,1743784241498,-232.0,0.00049315,90]
[357138199,1743784241507,-232.0,0.00049315,90]
[357138200,1743784241517,-500.0,0.000495,120]
[357138201,1743784241526,-500.0,0.000495,120]
[357138202,1743784241535,-500.0,0.000495,120]
[357138203,1743784241545,-500.0,0.000495,120]
[357138204,1743784241554,-500.0,0.000495,120]
[357138205,1743784241563,-500.0,0.000495,120]
[357138206,1743784241573,-500.0,0.000495,120]
[357138207,1743784241582,-500.0,0.000495,120]
[357138208,1743784241592,-500.0,0.000495,120]
[357138209,1743784241606,-500.0,0.000495,120]
[357138210,1743784241616,-500.0,0.000495,120]
[357138211,1743784241625,-500.0,0.000495,120]
[357138212,1743784241635,-500.0,0.000495,120]
[357138213,1743784241644,-500.0,0.000495,120]
[357138214,1743784241654,-500.0,0.000495,120]
[357138215,1743784241664,-500.0,0.000495,120]
[357138216,1743784241673,-500.0,0.000495,120]
[357138217,1743784241683,-500.0,0.000495,120]
[357138218,1743784241692,-500.0,0.000495,120]
[357138219,1743784241702,-500.0,0.000495,120]
[357138220,1743784241713,-500.0,0.000495,120]
[357138221,1743784241723,-500.0,0.000495,120]
[357138222,1743784241732,-500.0,0.000495,120]
[357138223,1743784241742,-500.0,0.000495,120]
[357138224,1743784241752,-500.0,0.000495,120]
[357138225,1743784241762,-500.0,0.000495,120]
[357138226,1743784241772,-500.0,0.000495,120]
[357138227,1743784241782,-500.0,0.000495,120]
[357138228,1743784241791,-500.0,0.000495,120]
[357138229,1743784241800,-500.0,0.000495,120]
[357138230,1743784241810,-500.0,0.000495,120]
[357138231,1743784241821,-500.0,0.000495,120]
[357138232,1743784241831,-500.0,0.000495,120]
[357138233,1743784241841,-500.0,0.000495,120]
[357138234,1743784241852,-500.0,0.000495,120]
[357138235,1743784241862,-500.0,0.000495,120]
[357138236,1743784241974,-500.0,0.000495,120]
[357138237,1743784241984,-500.0,0.000495,120]
[357138238,1743784241994,-500.0,0.000495,120]
[357138239,1743784242004,-500.0,0.000495,120]
[357138240,1743784242013,-500.0,0.000495,120]
[357138241,1743784242022,-266.43,0.000495,120]
[357138242,1743784242031,-500.0,0.000495,120]
[357138243,1743784242040,-500.0,0.000495,120]
[357138244,1743784242049,-500.0,0.000495,120]
[357138245,1743784242058,-437.72,0.000495,120]
[357138246,1743784242068,-500.0,0.000495,120]
[357138247,1743784242077,-501.63481894,0.00049531,10]
[357138248,1743784242086,-500.0,0.00049531,10]
[357138249,1743784242097,-501.42177442,0.00049531,10]
[357138250,1743784242107,-500.0,0.00049531,10]
[357138251,1743784242116,-509.99994119,0.00049531,5]
[357138252,1743784242125,-500.0,0.00049531,10]
[357138253,1743784242135,-421.86540039,0.00049589,120]
[357138254,1743784242144,-500.0,0.00049589,120]
[357138255,1743784242153,-500.0,0.00049589,120]
[357138256,1743784242162,-500.0,0.00049589,120]
[357138257,1743784242173,-1875.29,0.00049589,120]
[357138258,1743784242183,-500.0,0.00049589,120]
[357138259,1743784242192,-500.0,0.00049589,120]
[357138260,1743784242201,-1956.54,0.00049589,120]
[357138261,1743784242210,-825.72,0.00049589,120]
[357138262,1743784242221,-500.0,0.00049589,120]
[357138263,1743784242231,-500.0,0.00049589,120]
[357138264,1743784242241,-524.14,0.00049589,120]
[357138265,1743784242250,-908.92,0.00049589,120]
[357138266,1743784242262,-500.0,0.00049589,120]
[357138267,1743784242271,-500.0,0.00049589,120]
[357138268,1743784242280,-500.0,0.00049589,2]
[357138269,1743784242289,-500.0,0.00049589,120]
[357138270,1743784242298,-754.52,0.00049589,120]
[357138271,1743784242307,-500.0,0.00049589,120]
[357138272,1743784242316,-500.0,0.00049589,120]
[357138273,1743784242326,-500.0,0.00049589,120]
[357138274,1743784242335,-500.0,0.00049589,120]
[357138275,1743784242347,-500.0,0.00049589,120]
[357138276,1743784242356,-500.0,0.00049589,120]
[357138277,1743784242365,-500.0,0.00049589,2]
[357138278,1743784242375,-500.0,0.00049589,120]
[357138279,1743784242384,-553.61,0.00049589,120]
[357138280,1743784242394,-309.97503208,0.00049589,120]
[357138281,1743784242404,-500.0,0.00049589,100]
[357138282,1743784242413,-500.0,0.00049589,2]
[357138283,1743784242423,-205.02848592,0.00049589,120]
[357138284,1743784242432,-3341.14042156,0.0004963,2]
[357138285,1743784242442,-767.23,0.00049644,2]
[357138286,1743784242451,-3896.57157165,0.0004979,120]
[357138287,1743784242460,-185.9152458,0.000498,10]
[357138288,1743784242469,-500.0,0.00049863,120]
[357138289,1743784242478,-1875.29,0.00049863,120]
[357138290,1743784242487,-230.43948957,0.00049863,120]
[357138291,1743784242496,-500.0,0.00049863,120]
[357138292,1743784242505,-1956.54,0.00049863,120]
[357138293,1743784242515,-825.72,0.00049863,120]
[357138294,1743784242525,-500.0,0.00049863,120]
[357138295,1743784242535,-500.0,0.00049863,120]
[357138296,1743784242544,-524.14,0.00049863,120]
[357138297,1743784242554,-908.92,0.00049863,120]
[357138298,1743784242563,-612.01822974,0.00049863,120]
[357138299,1743784242572,-405.58135278,0.00049863,120]
[357138300,1743784242582,-500.0,0.00049863,2]
[357138301,1743784242591,-500.0,0.00049863,120]
[357138302,1743784242604,-754.52,0.00049863,120]
[357138303,1743784242613,-500.0,0.00049863,120]
[357138304,1743784242622,-500.0,0.00049863,120]
[357138305,1743784242631,-500.0,0.00049863,120]
[357138306,1743784242641,-500.0,0.00049863,120]
[357138307,1743784242650,-500.0,0.00049863,120]
[357138308,1743784242660,-500.0,0.00049863,120]
[357138309,1743784242670,-500.0,0.00049863,120]
[357138310,1743784242679,-500.0,0.00049863,2]
[357138311,1743784242688,-553.61,0.00049863,120]
[357138312,1743784242698,-500.0,0.00049863,100]
[357138313,1743784242708,-500.0,0.00049863,2]
[357138314,1743784242717,-151.0,0.0004987,2]
[357138316,1743784242727,-500.0,0.0004987,2]
[357138318,1743784242736,-500.0,0.0004987,30]
[357138320,1743784242745,-150.55,0.0004989,120]
[357138322,1743784242755,-150.55,0.0004989,120]
[357138324,1743784242764,-4111.6415,0.0004989,2]
[357138325,1743784242774,-1000.0,0.0004989,2]
[357138326,1743784242783,-500.0,0.0004989,2]
[357138327,1743784242792,-22572.9935,0.0004989,2]
[357138328,1743784242801,-47501.1726,0.000499,2]
[357138329,1743784242811,-32700.57219945,0.000499,120]
[357138330,1743784242820,-207680.62,0.000499,60]
[357138331,1743784242830,-10020.50254633,0.000499,5]
[357138332,1743784242839,-151.0,0.000499,120]
[357138333,1743784242851,-151.0,0.000499,120]
[357138334,1743784242861,-151.0,0.000499,120]
[357138336,1743784242870,-152.604705,0.000499,120]
[357138337,1743784242880,-151.0,0.000499,120]
[357138338,1743784242890,-1500.0,0.00049957,5]
[357138340,1743784242900,-606.6,0.00049999,120]
[357138342,1743784242909,-500.0,0.00049999,2]
[357138343,1743784242919,-500.0,0.00049999,120]
[357138344,1743784242928,-500.0,0.00049999,120]
[357138345,1743784242937,-500.0,0.00049999,120]
[357138346,1743784242947,-1000.0,0.0005,120]
[357138347,1743784242956,-539.0,0.0005,15]
[357138348,1743784242966,-1000.0,0.0005,5]
[357138349,1743784242975,-1000.0,0.0005,5]
[357138350,1743784242985,-1000.0,0.0005,5]
[357138351,1743784242994,-1000.0,0.0005,5]
[357138352,1743784243003,-1000.0,0.0005,5]
[357138354,1743784243012,-1000.0,0.0005,5]
[357138356,1743784243021,-1000.0,0.0005,5]
[357138358,1743784243030,-1731.69358991,0.0005,120]
[357138359,1743784243039,-169.83,0.0005,120]
[357138360,1743784243049,-2634.3274726,0.0005,5]
[357138361,1743784243058,-2911.12796644,0.0005,3]
[357138362,1743784243067,-154.15079231,0.0005,120]
[357138363,1743784243077,-1135.62901582,0.0005,2]
[357138364,1743784243086,-1515.58787025,0.0005,2]
[357138365,1743784243095,-347.79614234,0.0005,120]
[357138366,1743784243104,-222.44652138,0.00050025,15]
[357138367,1743784243113,-4427.3001,0.00050031,2]
[357138368,1743784243123,-539.82438458,0.00050052,10]
[357138369,1743784243132,-161.35134053,0.00050052,10]
[357138370,1743784243141,-502.35504432,0.00050119,60]
[357138371,1743784243150,-230.8311589,0.00050125,120]
[357138372,1743784243159,-1365.0,0.00050131,120]
[357138373,1743784243168,-789.0,0.00050131,2]
[357138374,1743784243179,-325.404,0.00050131,120]
[357138375,1743784243189,-1434.0,0.00050131,120]
[357138376,1743784243198,-909.0,0.00050131,120]
[357138377,1743784243207,-543.0,0.00050131,120]
[357138378,1743784243217,-151.0,0.00050131,120]
[357138379,1743784243226,-3950.0,0.00050131,120]
[357138380,1743784243235,-851.0,0.00050131,120]
[357138381,1743784243245,-704.072,0.00050131,120]
[357138382,1743784243257,-500.0,0.00050136,60]
[357138383,1743784243266,-500.0,0.00050136,120]
[357138384,1743784243275,-1875.29,0.00050136,120]
[357138385,1743784243284,-500.0,0.00050136,120]
[357138386,1743784243293,-1956.54,0.00050136,120]
[357138387,1743784243302,-825.72,0.00050136,120]
[357138388,1743784243311,-500.0,0.00050136,120]
[357138389,1743784243320,-529.49737016,0.00050136,120]
[357138390,1743784243329,-524.14,0.00050136,120]
[357138391,1743784243338,-908.92,0.00050136,120]
[357138392,1743784243349,-500.0,0.00050136,2]
[357138393,1743784243359,-500.0,0.00050136,120]
[357138394,1743784243368,-754.52,0.00050136,120]
[357138395,1743784243378,-500.0,0.00050136,120]
[357138397,1743784243387,-500.0,0.00050136,120]
[357138398,1743784243396,-500.0,0.00050136,120]
[357138400,1743784243405,-500.0,0.00050136,120]
[357138402,1743784243414,-586.94806024,0.00050136,120]
[357138404,1743784243423,-202.64240195,0.00050136,120]
[357138406,1743784243433,-500.0,0.00050136,120]
[357138408,1743784243442,-500.0,0.00050136,2]
[357138410,1743784243451,-553.61,0.00050136,120]
[357138412,1743784243461,-500.0,0.00050136,100]
[357138414,1743784243469,-500.0,0.00050136,2]
[357138416,1743784243479,-222.44652137,0.0005015,15]
[357138418,1743784243488,-500.0,0.0005015,60]
[357138420,1743784243497,-152.627127,0.0005015,120]
[357138422,1743784243507,-151.0,0.0005015,120]
[357138424,1743784243516,-151.0,0.0005015,120]
[357138426,1743784243525,-151.0,0.0005015,120]
[357138428,1743784243535,-151.0,0.0005015,120]
[357138430,1743784243544,-218.11,0.00050165,2]
[357138432,1743784243554,-1404.3491,0.0005019,2]
[357138434,1743784243563,-150.0,0.00050215,7]
[357138436,1743784243572,-150.0,0.00050216,7]
[357138439,1743784243582,-150.0,0.00050225,7]
[357138441,1743784243590,-150.0,0.00050225,7]
[357138443,1743784243601,-150.0,0.00050225,7]
[357138445,1743784243610,-150.0,0.00050227,7]
[357138447,1743784243620,-150.0,0.00050233,7]
[357138449,1743784243628,-150.0,0.00050235,7]
[357138451,1743784243638,-150.0,0.00050239,7]
[357138453,1743784243647,-150.0,0.00050241,7]
[357138455,1743784243656,-150.0,0.00050244,7]
[357138457,1743784243665,-150.0,0.00050245,7]
[357138459,1743784243674,-150.0,0.00050246,7]
[357138461,1743784243683,-976.58888174,0.00050251,30]
[357138463,1743784243693,-150.0,0.00050257,7]
[357138465,1743784243702,-150.0,0.0005026,7]
[357138467,1743784243713,-150.0,0.00050262,7]
[357138469,1743784243722,-150.0,0.00050263,7]
[357138471,1743784243730,-150.0,0.00050263,7]
[357138473,1743784243740,-150.0,0.00050264,7]
[357138475,1743784243749,-150.0,0.00050266,7]
[357138477,1743784243759,-150.0,0.00050269,7]
[357138479,1743784243767,-606.6,0.00050273,120]
[357138481,1743784243777,-500.0,0.00050273,2]
[357138483,1743784243786,-196.28574844,0.00050273,120]
[357138484,1743784243796,-500.0,0.00050273,120]
[357138486,1743784243805,-500.0,0.00050273,120]
[357138488,1743784243816,-222.44652137,0.00050275,15]
[357138490,1743784243825,-150.0,0.0005028,7]
[357138491,1743784243835,-150.0,0.00050285,7]
[357138492,1743784243846,-150.0,0.00050287,7]
[357138493,1743784243855,-150.0,0.00050292,7]
[357138494,1743784243865,-150.0,0.00050294,7]
[357138495,1743784243874,-150.0,0.00050294,7]
[357138496,1743784243883,-150.0,0.00050294,7]
[357138497,1743784243892,-150.0,0.00050297,30]
[357138498,1743784243902,-597.72,0.00050299,120]
[357138499,1743784243911,-20000.0,0.000503,2]
[357138500,1743784243919,-891.2849,0.000503,2]
[357138501,1743784243928,-12192.8756,0.000503,2]
[357138502,1743784243938,-6168.89,0.000503,14]
[357138503,1743784243947,-150.0,0.00050301,7]
[357138504,1743784243956,-150.0,0.00050304,7]
[357138505,1743784243965,-1000.0,0.00050305,30]
[357138506,1743784243974,-150.0,0.00050314,7]
[357138507,1743784243984,-150.0,0.00050314,7]
[357138508,1743784243993,-150.0,0.0005032,7]
[357138509,1743784244002,-150.0,0.00050321,7]
[357138510,1743784244011,-150.0,0.00050323,7]
[357138511,1743784244020,-150.0,0.00050326,7]
[357138512,1743784244030,-150.0,0.00050326,7]
[357138513,1743784244039,-150.0,0.0005033,7]
[357138514,1743784244048,-150.0,0.00050332,7]
[357138515,1743784244057,-150.0,0.00050333,7]
[357138516,1743784244066,-150.0,0.00050334,7]
[357138517,1743784244075,-150.0,0.00050334,7]
[357138518,1743784244085,-150.0,0.00050336,7]
[357138519,1743784244095,-150.0,0.00050337,7]
[357138520,1743784244104,-150.0,0.00050339,7]
[357138521,1743784244113,-150.0,0.0005034,7]
[357138522,1743784244123,-150.0,0.00050349,7]
[357138523,1743784244132,-150.0,0.00050349,7]
[357138524,1743784244142,-150.0,0.00050349,7]
[357138525,1743784244151,-150.0,0.0005035,7]
[357138526,1743784244160,-150.0,0.0005035,7]
[357138527,1743784244169,-150.0,0.00050355,7]
[357138528,1743784244279,-150.0,0.00050355,30]
[357138529,1743784244289,-150.0,0.00050356,7]
[357138530,1743784244300,-150.0,0.00050357,7]
[357138531,1743784244309,-150.0,0.00050358,7]
[357138532,1743784244318,-150.0,0.00050362,7]
[357138533,1743784244328,-1000.0,0.00050363,30]
[357138534,1743784244338,-150.0,0.00050363,7]
[357138535,1743784244350,-150.0,0.00050363,7]
[357138536,1743784244360,-150.0,0.00050371,7]
[357138537,1743784244370,-150.0,0.00050372,7]
[357138538,1743784244382,-150.0,0.00050377,7]
[357138539,1743784244392,-150.0,0.0005038,7]
[357138540,1743784244401,-515.24617192,0.00050389,15]
[357138541,1743784244411,-150.0,0.0005039,7]
[357138542,1743784244420,-150.0,0.0005039,7]
[357138543,1743784244429,-150.0,0.00050392,7]
[357138544,1743784244439,-584.0,0.00050396,7]
[357138545,1743784244448,-150.0,0.00050396,30]
[357138546,1743784244457,-150.0,0.00050397,7]
[357138547,1743784244467,-150.0,0.00050398,7]
[357138548,1743784244476,-5100.0,0.000504,2]
[357138549,1743784244485,-223.0,0.000504,120]
[357138550,1743784244494,-152.29444619,0.000504,27]
[357138551,1743784244503,-1341.397259,0.000504,120]
[357138552,1743784244512,-154.09630242,0.000504,40]
[357138553,1743784244521,-150.0,0.000504,30]
[357138554,1743784244531,-222.44652137,0.000504,15]
[357138555,1743784244540,-192.793727,0.000504,120]
[357138556,1743784244549,-159.0,0.000504,61]
[357138557,1743784244558,-150.0,0.00050401,7]
[357138558,1743784244567,-500.0,0.00050409,120]
[357138559,1743784244577,-693.29,0.00050409,120]
[357138560,1743784244586,-500.0,0.00050409,120]
[357138561,1743784244595,-500.0,0.00050409,120]
[357138562,1743784244605,-500.0,0.00050409,120]
[357138563,1743784244614,-500.0,0.00050409,120]
[357138564,1743784244624,-500.0,0.00050409,120]
[357138565,1743784244633,-500.0,0.00050409,120]
[357138566,1743784244642,-500.0,0.00050409,120]
[357138567,1743784244651,-500.0,0.00050409,120]
[357138568,1743784244661,-500.0,0.00050409,120]
[357138569,1743784244671,-595.16401569,0.00050409,120]
[357138570,1743784244680,-500.0,0.00050409,7]
[357138571,1743784244689,-185.03799937,0.00050409,120]
[357138572,1743784244698,-500.0,0.00050409,120]
[357138573,1743784244708,-500.0,0.00050409,120]
[357138574,1743784244717,-654.5,0.00050409,120]
[357138575,1743784244726,-500.0,0.00050409,120]
[357138576,1743784244736,-500.0,0.00050409,120]
[357138577,1743784244746,-444.1136701,0.00050409,120]
[357138578,1743784244755,-500.0,0.00050409,120]
[357138579,1743784244765,-500.0,0.00050409,120]
[357138580,1743784244774,-578.75664656,0.00050409,120]
[357138581,1743784244783,-934.65,0.00050409,120]
[357138582,1743784244792,-2359.71,0.00050409,7]
[357138583,1743784244802,-592.04679332,0.00050409,120]
[357138584,1743784244811,-574.43819566,0.00050409,120]
[357138585,1743784244820,-500.0,0.00050409,120]
[357138586,1743784244829,-1118.39,0.00050409,120]
[357138587,1743784244838,-614.86501717,0.00050409,120]
[357138588,1743784244850,-500.0,0.00050409,120]
[357138589,1743784244859,-500.0,0.00050409,120]
[357138590,1743784244868,-500.0,0.00050409,120]
[357138591,1743784244878,-1318.54,0.00050409,120]
[357138592,1743784244887,-1219.9,0.00050409,120]
[357138593,1743784244896,-4812.53,0.00050409,120]
[357138594,1743784244905,-500.0,0.00050409,120]
[357138595,1743784244915,-500.0,0.00050409,120]
[357138596,1743784244924,-2532.09,0.00050409,120]
[357138597,1743784244933,-500.0,0.00050409,120]
[357138598,1743784244943,-500.0,0.00050409,120]
[357138599,1743784244952,-500.0,0.00050409,120]
[357138600,1743784244961,-684.54,0.00050409,120]
[357138601,1743784244971,-500.0,0.0005041,120]
[357138602,1743784244980,-1875.29,0.0005041,120]
[357138603,1743784244989,-500.0,0.0005041,120]
[357138604,1743784244998,-1956.54,0.0005041,120]
[357138605,1743784245007,-825.72,0.0005041,120]
[357138606,1743784245016,-500.0,0.0005041,120]
[357138607,1743784245026,-524.14,0.0005041,120]
[357138608,1743784245035,-908.92,0.0005041,120]
[357138609,1743784245045,-150.0,0.0005041,7]
[357138610,1743784245054,-500.0,0.0005041,2]
[357138611,1743784245063,-237.32512792,0.0005041,120]
[357138612,1743784245073,-754.52,0.0005041,120]
[357138613,1743784245082,-500.0,0.0005041,120]
[357138614,1743784245091,-500.0,0.0005041,120]
[357138615,1743784245104,-500.0,0.0005041,120]
[357138616,1743784245114,-500.0,0.0005041,120]
[357138617,1743784245124,-564.0439911,0.0005041,120]
[357138618,1743784245134,-500.0,0.0005041,2]
[357138619,1743784245144,-553.61,0.0005041,120]
[357138620,1743784245154,-500.0,0.0005041,100]
[357138621,1743784245164,-500.0,0.0005041,2]
[357138622,1743784245177,-150.0,0.00050413,7]
[357138623,1743784245186,-150.0,0.00050414,7]
[357138624,1743784245195,-150.0,0.00050417,7]
[357138625,1743784245205,-518.5,0.00050418,2]
[357138626,1743784245214,-1000.0,0.00050423,30]
[357138627,1743784245224,-150.0,0.00050424,7]
[357138628,1743784245234,-150.0,0.00050424,7]
[357138629,1743784245245,-150.0,0.00050427,7]
[357138630,1743784245254,-150.0,0.00050431,7]
[357138631,1743784245265,-150.0,0.00050436,7]
[357138632,1743784245274,-150.0,0.00050438,7]
[357138633,1743784245284,-150.0,0.00050439,7]
[357138634,1743784245293,-150.0,0.0005044,7]
[357138635,1743784245303,-150.0,0.00050441,7]
[357138636,1743784245312,-150.0,0.00050445,7]
[357138637,1743784245322,-150.0,0.00050447,7]
[357138638,1743784245331,-1000.0,0.00050447,30]
[357138639,1743784245341,-150.0,0.0005045,7]
[357138640,1743784245353,-150.0,0.00050451,7]
[357138641,1743784245362,-150.0,0.00050454,7]
[357138642,1743784245372,-150.0,0.00050454,7]
[357138643,1743784245382,-150.0,0.00050455,7]
[357138644,1743784245392,-331.0,0.0005046,7]
[357138645,1743784245402,-500.0,0.0005046,120]
[357138646,1743784245411,-622.91,0.0005046,120]
[357138647,1743784245420,-500.0,0.0005046,120]
[357138648,1743784245430,-1447.85,0.0005046,120]
[357138649,1743784245439,-500.0,0.0005046,2]
[357138650,1743784245450,-500.0,0.0005046,10]
[357138651,1743784245459,-500.0,0.0005046,120]
[357138652,1743784245469,-500.0,0.0005046,120]
[357138653,1743784245479,-504.08976588,0.0005046,120]
[357138654,1743784245488,-500.0,0.0005046,120]
[357138655,1743784245498,-363.68476854,0.0005046,120]
[357138656,1743784245507,-500.0,0.0005046,120]
[357138657,1743784245517,-774.98,0.0005046,120]
[357138658,1743784245526,-500.0,0.0005046,120]